bitfinex/quotes_BTCUSD_20250902
["timestamp","ask_amount","ask_price","bid_price","bid_amount"]
[1756822792940,0.83854028,111430.0,111420.0,0.00596]
[1756822793265,0.83854028,111430.0,111420.0,0.18646098]
[1756822794188,0.65905541,111430.0,111420.0,0.18646098]
[1756822794628,0.65905541,111430.0,111420.0,0.002]
[1756822794629,1.20012332,111430.0,111420.0,0.002]
[1756822795505,1.20012332,111430.0,111420.0,0.18646098]
[1756822795725,1.20012332,111430.0,111420.0,0.22205876]
[1756822795942,1.20012332,111430.0,111420.0,0.04255778]
[1756822796369,1.20012332,111430.0,111420.0,0.04054778]
[1756822796581,1.20012332,111430.0,111420.0,0.001]
[1756822796795,1.20012332,111430.0,111420.0,0.002]
[1756822797564,1.22711037,111430.0,111420.0,0.002]
[1756822797815,0.38857009,111430.0,111420.0,0.00696]
[1756822798021,1.20012332,111430.0,111420.0,0.18646098]
[1756822798222,1.20012332,111430.0,111420.0,0.22305867]
[1756822798397,1.20012332,111430.0,111420.0,0.04355769]
[1756822798601,1.20012332,111430.0,111420.0,0.002]
[1756822799823,1.29203931,111430.0,111420.0,0.002]
[1756822800274,1.32980997,111430.0,111420.0,0.002]
[1756822800480,1.41628997,111430.0,111420.0,0.002]
[1756822800684,1.32980997,111430.0,111420.0,0.002]
[1756822800883,1.30887115,111430.0,111420.0,0.002]
[1756822801179,1.29203931,111430.0,111420.0,0.002]
[1756822801403,1.29203931,111430.0,111420.0,0.001]
[1756822801822,1.40078625,111430.0,111420.0,0.001]
[1756822802045,1.21695427,111430.0,111420.0,0.001]
[1756822802259,1.21695427,111430.0,111420.0,0.00295]
[1756822802260,1.20012332,111430.0,111420.0,0.00295]
[1756822802714,1.20012332,111430.0,111420.0,0.00496]
[1756822803587,1.20112332,111430.0,111420.0,0.00295]
[1756822803803,0.20206791,111430.0,111420.0,0.18446098]
[1756822804035,0.65905541,111430.0,111420.0,0.22085874]
[1756822804253,0.68063845,111440.0,111430.0,0.17948487]
[1756822804436,0.86010722,111440.0,111430.0,0.00496]
[1756822804692,0.86010722,111440.0,111430.0,0.18244487]
[1756822804918,1e-08,111450.0,111440.0,0.17946877]
[1756822805139,1e-08,111450.0,111440.0,0.21607098]
[1756822806543,1e-08,111450.0,111440.0,0.30898697]
[1756822806768,1e-08,111450.0,111440.0,0.33985798]
[1756822807936,1e-08,111450.0,111440.0,0.31098697]
[1756822808156,1e-08,111450.0,111440.0,0.34178974]
[1756822808592,1e-08,111450.0,111440.0,0.34078974]
[1756822809053,1e-08,111450.0,111440.0,0.33878974]
[1756822809296,1e-08,111450.0,111440.0,1.35878397]
[1756822809526,1e-08,111450.0,111440.0,0.86401552]
[1756822809744,1e-08,111450.0,111440.0,1.52707093]
[1756822809970,1e-08,111450.0,111440.0,1.52907093]
[1756822810207,1e-08,111450.0,111440.0,0.87001552]
[1756822810433,1e-08,111450.0,111440.0,1.52707093]
[1756822811168,1e-08,111450.0,111440.0,0.86401552]
[1756822811382,1e-08,111450.0,111440.0,1.92907093]
[1756822811805,1e-08,111450.0,111440.0,1.92307093]
[1756822812022,1e-08,111450.0,111440.0,1.93107093]
[1756822812906,1e-08,111450.0,111440.0,1.26401552]
[1756822813127,1e-08,111450.0,111440.0,1.92707093]
[1756822813772,1e-08,111450.0,111440.0,1.92307093]
[1756822814025,1e-08,111450.0,111440.0,1.92707093]
[1756822814268,1e-08,111450.0,111440.0,1.26801552]
[1756822814702,1e-08,111450.0,111440.0,1.27601552]
[1756822814927,1e-08,111450.0,111440.0,1.93507093]
[1756822816251,1e-08,111460.0,111450.0,0.25786962]
[1756822816464,1e-08,111460.0,111450.0,1.38833878]
[1756822816688,1e-08,111460.0,111450.0,1.39049878]
[1756822816945,1e-08,111460.0,111450.0,1.8114376]
[1756822817595,1e-08,111460.0,111450.0,1.8144376]
[1756822818063,1e-08,111460.0,111450.0,1.15538219]
[1756822818501,1e-08,111460.0,111450.0,1.16138219]
[1756822818687,1e-08,111460.0,111450.0,1.9063076]
[1756822819800,1e-08,111460.0,111450.0,1.16138219]
[1756822820016,1e-08,111460.0,111450.0,1.8204376]
[1756822820803,1e-08,111460.0,111450.0,1.79949878]
[1756822821015,1e-08,111460.0,111450.0,1.11202641]
[1756822821241,1e-08,111460.0,111450.0,1.13296523]
[1756822822605,1e-08,111460.0,111450.0,0.77202641]
[1756822822831,1e-08,111460.0,111450.0,1.13537916]
[1756822823049,0.00041001,111460.0,111450.0,0.71676641]
[1756822823285,1e-08,111460.0,111450.0,1.05676641]
[1756822823740,0.00041001,111460.0,111450.0,0.65676641]
[1756822823969,0.00041001,111460.0,111450.0,0.28036865]
[1756822824193,1e-08,111460.0,111450.0,0.28562865]
[1756822824422,1e-08,111460.0,111450.0,0.62562865]
[1756822824667,1e-08,111460.0,111450.0,0.66992022]
[1756822825428,1e-08,111460.0,111450.0,1.35739259]
[1756822825668,1e-08,111460.0,111450.0,1.43833542]
[1756822825850,1e-08,111460.0,111450.0,1.50085267]
[1756822826544,1e-08,111460.0,111450.0,1.54726692]
[1756822827042,1e-08,111460.0,111450.0,1.46139692]
[1756822827246,1e-08,111460.0,111450.0,1.41498267]
[1756822827681,1e-08,111460.0,111450.0,1.83834491]
[1756822828105,1e-08,111460.0,111450.0,1.83834212]
[1756822828383,1e-08,111460.0,111450.0,1.81498267]
[1756822828608,1e-08,111460.0,111450.0,1.83045409]
[1756822828829,1e-08,111460.0,111450.0,1.82445409]
[1756822829058,1e-08,111460.0,111450.0,1.91032409]
[1756822829301,0.5,111500.0,111490.0,1.17844369]
[1756822829524,0.5,111500.0,111490.0,1.32497546]
[1756822829525,1e-08,111500.0,111490.0,1.32497546]
[1756822830005,1e-08,111500.0,111490.0,1.06592005]
[1756822830240,1e-08,111500.0,111490.0,1.03224309]
[1756822830456,1e-08,111500.0,111490.0,1.03534309]
[1756822830673,0.00014086,111500.0,111490.0,1.03534309]
[1756822830940,0.00055086,111500.0,111490.0,1.01130427]
[1756822831164,0.00055086,111500.0,111490.0,0.61130427]
[1756822831400,0.00080086,111500.0,111490.0,0.27130427]
[1756822831619,0.00080086,111500.0,111490.0,0.17938828]
[1756822831620,0.65985627,111500.0,111490.0,0.17938828]
[1756822831848,0.00055086,111500.0,111490.0,0.18038828]
[1756822832110,0.00055086,111500.0,111490.0,0.17938828]
[1756822832337,0.20175609,111500.0,111480.0,0.04122666]
[1756822832564,0.8608115,111500.0,111490.0,0.002]
[1756822833013,0.17938828,111490.0,111480.0,0.02206194]
[1756822833233,0.86027673,111490.0,111480.0,0.02206194]
[1756822833471,0.17940437,111480.0,111470.0,0.17941976]
[1756822833691,0.65971541,111480.0,111470.0,0.17942047]
[1756822834810,0.86070282,111480.0,111460.0,0.17939006]
[1756822835038,0.86070282,111480.0,111460.0,0.27130605]
[1756822835274,0.86070282,111480.0,111470.0,0.17942047]
[1756822835504,0.68104845,111480.0,111470.0,0.22449312]
[1756822835745,0.00041,111480.0,111470.0,0.31640911]
[1756822836017,0.02158304,111490.0,111480.0,0.17940437]
[1756822836242,0.02199304,111490.0,111480.0,0.17940437]
[1756822836479,0.86043673,111490.0,111480.0,0.17940437]
[1756822836694,0.68104845,111490.0,111480.0,0.20237169]
[1756822837360,0.86068673,111490.0,111480.0,0.20337169]
[1756822837811,0.68104845,111490.0,111480.0,0.20437169]
[1756822838037,0.02199304,111490.0,111480.0,0.20437169]
[1756822838261,0.00041,111490.0,111480.0,0.29628768]
[1756822838506,0.0217239,111500.0,111490.0,0.17938828]
[1756822838700,0.00041,111490.0,111480.0,0.27332036]
[1756822839151,0.65946541,111490.0,111480.0,0.18140437]
[1756822839367,0.86068673,111490.0,111480.0,0.18040437]
[1756822840090,0.86068673,111490.0,111480.0,0.001]
[1756822840312,1.29260272,111490.0,111480.0,0.001]
[1756822840538,1.47011871,111490.0,111480.0,0.001]
[1756822840767,1.49709226,111490.0,111480.0,0.002]
[1756822840996,1.42611509,111490.0,111480.0,0.002]
[1756822842791,1.42611509,111490.0,111480.0,0.001]
[1756822843119,1.42611509,111490.0,111450.0,0.07354631]
[1756822843120,0.2010196,111460.0,111450.0,0.07354631]
[1756822843337,0.86007501,111460.0,111450.0,0.07354631]
[1756822843568,0.86048501,111460.0,111450.0,0.07354631]
[1756822843795,0.88746293,111460.0,111450.0,0.10118219]
[1756822844015,0.22840752,111460.0,111450.0,0.28063485]
[1756822844240,0.88746293,111460.0,111450.0,0.02763588]
[1756822844466,0.8876037,111460.0,111450.0,0.03163588]
[1756822845585,0.88726092,111460.0,111450.0,0.03163588]
[1756822845806,0.91832259,111460.0,111450.0,0.21308854]
[1756822846035,0.91832259,111460.0,111450.0,0.03363588]
[1756822846276,0.74326848,111460.0,111450.0,0.21308854]
[1756822846491,0.74326848,111460.0,111450.0,0.006]
[1756822846720,1.08351848,111460.0,111450.0,0.006]
[1756822846943,1.17543447,111460.0,111450.0,0.006]
[1756822847168,1.28197329,111460.0,111450.0,0.006]
[1756822847389,1.37388928,111460.0,111450.0,0.006]
[1756822847838,1.37388928,111460.0,111450.0,0.002]
[1756822848278,1.28397329,111460.0,111450.0,0.002]
[1756822848710,0.20106791,111430.0,111420.0,0.17950079]
[1756822848938,0.68472643,111430.0,111410.0,0.28722967]
[1756822849162,0.68474254,111420.0,111410.0,0.28418967]
[1756822849382,0.68515254,111420.0,111410.0,0.21064365]
[1756822849604,0.20110013,111410.0,111400.0,0.26001164]
[1756822849849,0.68475865,111410.0,111400.0,0.03112656]
[1756822850106,0.17953321,111400.0,111390.0,0.07754081]
[1756822850344,0.02158304,111370.0,111360.0,0.2290506]
[1756822850577,0.50524156,111370.0,111360.0,0.23188954]
[1756822850805,0.50524156,111370.0,111360.0,0.23235942]
[1756822851032,0.68482313,111370.0,111360.0,0.23235942]
[1756822851265,0.50524156,111370.0,111360.0,0.24001013]
[1756822851709,0.50524156,111370.0,111360.0,0.24201013]
[1756822852403,0.02158304,111380.0,111370.0,0.17958157]
[1756822852664,0.02158304,111380.0,111370.0,0.18477157]
[1756822852902,0.50524156,111380.0,111370.0,0.18477157]
[1756822853130,0.50524156,111390.0,111380.0,0.17956545]
[1756822853358,0.48365852,111390.0,111380.0,0.18171545]
[1756822853586,0.02158304,111380.0,111370.0,0.19590899]
[1756822853813,0.02158304,111380.0,111370.0,0.19805899]
[1756822854032,0.20155849,111380.0,111370.0,0.01328742]
[1756822854266,0.20114849,111380.0,111370.0,0.002]
[1756822854486,0.20155849,111380.0,111370.0,0.002]
[1756822854713,0.20155849,111380.0,111370.0,0.18158157]
[1756822854949,0.02158304,111380.0,111370.0,0.18158157]
[1756822855187,0.02158304,111380.0,111370.0,0.19077157]
[1756822855403,0.50524156,111380.0,111370.0,0.18877157]
[1756822855624,0.50524156,111380.0,111370.0,0.2267533]
[1756822856509,0.02158304,111380.0,111370.0,0.2277533]
[1756822856727,0.02158304,111380.0,111370.0,0.2237533]
[1756822856942,0.02158304,111380.0,111370.0,0.2257533]
[1756822857169,0.02158304,111380.0,111370.0,0.2237533]
[1756822857390,0.20114849,111380.0,111370.0,0.03898173]
[1756822857581,0.02158304,111380.0,111370.0,0.18358157]
[1756822857863,0.02158304,111380.0,111370.0,0.18877157]
[1756822858751,0.02158304,111380.0,111370.0,0.18173157]
[1756822859416,0.50524156,111380.0,111370.0,0.18173157]
[1756822859860,0.20116462,111370.0,111350.0,0.57958327]
[1756822860095,0.50524156,111370.0,111360.0,0.1795977]
[1756822860311,0.02158304,111370.0,111360.0,0.1817477]
[1756822860752,0.02158304,111370.0,111360.0,0.1847877]
[1756822861419,0.53223853,111380.0,111360.0,0.27670369]
[1756822861659,0.48365852,111370.0,111360.0,0.32344455]
[1756822861875,0.48365852,111370.0,111360.0,0.32644455]
[1756822862116,0.20214993,111380.0,111360.0,0.32644455]
[1756822862344,0.20214993,111380.0,111350.0,0.18870487]
[1756822862345,0.56211956,111360.0,111350.0,1e-08]
[1756822862564,0.56211956,111360.0,111320.0,0.0004]
[1756822862565,0.02158304,111330.0,111320.0,0.0004]
[1756822862795,0.50524156,111330.0,111320.0,0.00344]
[1756822863015,0.02158304,111330.0,111320.0,0.25442748]
[1756822863238,0.48365852,111340.0,111330.0,0.17964609]
[1756822863446,0.71395932,111340.0,111320.0,0.29663187]
[1756822863677,0.66330461,111330.0,111320.0,0.1139297]
[1756822863898,0.48365852,111330.0,111320.0,0.29574193]
[1756822864120,0.48365852,111330.0,111320.0,0.29878193]
[1756822864357,0.2282212,111340.0,111320.0,0.29574193]
[1756822864583,0.48365852,111330.0,111320.0,0.29878193]
[1756822865017,0.66330461,111330.0,111320.0,0.29878193]
[1756822865253,0.48365852,111330.0,111320.0,0.46234193]
[1756822865511,0.66330461,111330.0,111320.0,0.46434163]
[1756822865733,0.04859084,111340.0,111330.0,0.17964609]
[1756822865971,0.0270078,111340.0,111330.0,0.30044331]
[1756822866190,0.50524156,111350.0,111340.0,0.17962996]
[1756822866422,0.36158304,111360.0,111350.0,0.17961383]
[1756822866648,0.02158304,111350.0,111340.0,0.19165145]
[1756822866882,0.50524156,111350.0,111340.0,0.25081996]
[1756822867114,0.68693539,111350.0,111340.0,0.11553874]
[1756822867337,0.50732156,111350.0,111340.0,0.27694874]
[1756822867563,0.50732156,111350.0,111340.0,0.4587287]
[1756822867564,0.50524156,111350.0,111340.0,0.4587287]
[1756822868263,0.02158304,111350.0,111340.0,0.4617687]
[1756822868487,0.50524156,111350.0,111340.0,0.4627687]
[1756822868728,0.50624156,111350.0,111340.0,0.4627687]
[1756822868952,0.50524156,111350.0,111340.0,0.28009874]
[1756822869172,0.68694539,111350.0,111340.0,0.11438874]
[1756822869411,0.68694539,111350.0,111340.0,0.27794874]
[1756822869640,0.50733156,111350.0,111340.0,0.4575787]
[1756822869859,0.50524156,111350.0,111340.0,0.2961887]
[1756822870089,0.50524156,111350.0,111340.0,0.4629587]
[1756822870330,0.02258304,111350.0,111340.0,0.4629587]
[1756822870780,0.68794539,111350.0,111340.0,0.27794874]
[1756822871019,0.69088539,111350.0,111340.0,0.2326]
[1756822871245,1.12280138,111350.0,111340.0,0.2326]
[1756822872151,1.12180138,111350.0,111340.0,0.2326]
[1756822872343,1.12380138,111350.0,111340.0,0.2326]
[1756822872595,1.15080835,111350.0,111340.0,0.2326]
[1756822872817,1.14880835,111350.0,111340.0,0.2326]
[1756822873033,1.15080835,111350.0,111340.0,0.2326]
[1756822873510,1.24672434,111350.0,111340.0,0.2326]
[1756822873733,0.20122913,111330.0,111320.0,0.06962096]
[1756822873956,0.77680364,111330.0,111320.0,0.23318096]
[1756822874179,0.77889364,111330.0,111320.0,0.41284319]
[1756822874444,0.50524156,111330.0,111320.0,0.41501319]
[1756822874662,0.68488765,111330.0,111320.0,0.41501319]
[1756822874888,0.68697765,111330.0,111320.0,0.41284319]
[1756822875118,0.69091765,111330.0,111320.0,0.06962096]
[1756822875338,0.69091765,111330.0,111320.0,0.41284319]
[1756822875518,0.68588765,111330.0,111320.0,0.41501319]
[1756822875774,0.50624156,111330.0,111320.0,0.41501319]
[1756822876002,0.02258304,111330.0,111320.0,0.41822319]
[1756822876443,0.001,111330.0,111320.0,0.51013918]
[1756822876669,0.001,111330.0,111320.0,0.9937977]
[1756822876897,0.001,111330.0,111320.0,0.51013918]
[1756822877395,0.001,111330.0,111320.0,0.85013918]
[1756822877626,0.001,111330.0,111320.0,1.3337977]
[1756822878070,0.02158304,111350.0,111340.0,0.17962996]
[1756822878359,0.51359846,111350.0,111340.0,0.34318996]
[1756822878868,0.50524156,111350.0,111340.0,0.34535996]
[1756822879128,0.68694539,111350.0,111340.0,0.34314996]
[1756822879398,0.02158304,111340.0,111330.0,0.17963175]
[1756822879628,0.51361067,111340.0,111330.0,0.17963175]
[1756822880204,0.50733156,111340.0,111330.0,0.34315175]
[1756822880433,0.34,111360.0,111340.0,0.17962996]
[1756822880660,0.02158304,111350.0,111340.0,0.17962996]
[1756822880879,0.02158304,111350.0,111340.0,0.41560996]
[1756822881106,0.50524156,111350.0,111340.0,0.41239996]
[1756822881335,0.04858483,111370.0,111350.0,0.17961383]
[1756822881566,0.0362465,111370.0,111360.0,0.3484977]
[1756822881783,0.0362465,111370.0,111360.0,0.3474977]
[1756822882032,0.02996216,111370.0,111360.0,0.3474977]
[1756822882245,0.03624996,111370.0,111360.0,0.3474977]
[1756822882477,0.01466692,111370.0,111360.0,0.43941369]
[1756822882906,0.49832544,111370.0,111360.0,0.43941369]
[1756822883145,0.01466692,111370.0,111360.0,0.43941369]
[1756822883584,0.01466692,111370.0,111360.0,0.44041369]
[1756822883800,0.0062878,111370.0,111360.0,0.44241369]
[1756822884468,0.0062878,111370.0,111360.0,0.82418139]
[1756822884685,0.0062878,111370.0,111360.0,0.82414139]
[1756822886308,0.50524156,111390.0,111380.0,0.17956545]
[1756822886527,0.05576237,111390.0,111380.0,0.41212545]
[1756822886785,0.05576237,111390.0,111380.0,0.24864545]
[1756822886999,0.54445089,111390.0,111380.0,0.41212545]
[1756822887427,0.05576237,111390.0,111380.0,0.41212545]
[1756822887652,0.54445089,111390.0,111380.0,0.41212545]
[1756822887877,0.53942089,111390.0,111380.0,0.41429545]
[1756822888105,0.05576237,111390.0,111380.0,0.41429545]
[1756822888368,0.01483461,111390.0,111380.0,0.50621144]
[1756822888597,0.01483598,111390.0,111380.0,0.50621144]
[1756822888842,0.00643869,111390.0,111380.0,0.50621144]
[1756822889063,0.00643869,111390.0,111380.0,0.34273144]
[1756822889287,0.00743849,111390.0,111380.0,0.34273144]
[1756822889509,0.01583474,111390.0,111380.0,0.34273144]
[1756822889697,0.5231663,111390.0,111380.0,0.24864545]
[1756822889943,0.54545137,111390.0,111380.0,0.41208545]
[1756822890166,0.54545137,111390.0,111380.0,0.06908]
[1756822890387,0.7250007,111390.0,111380.0,0.41204545]
[1756822890638,0.7250007,111390.0,111380.0,0.41404545]
[1756822890886,0.7240007,111390.0,111380.0,0.41204545]
[1756822891104,0.54445137,111390.0,111380.0,0.41204545]
[1756822891331,0.03417981,111390.0,111380.0,0.41521545]
[1756822891561,0.00643849,111390.0,111380.0,0.50931144]
[1756822891785,0.00114072,111390.0,111380.0,0.50831144]
[1756822892014,0.00014072,111390.0,111380.0,0.50831144]
[1756822892245,0.00114072,111390.0,111380.0,0.99196996]
[1756822892474,0.00114072,111390.0,111380.0,1.33196996]
[1756822892700,0.00014072,111390.0,111380.0,1.33196996]
[1756822893006,0.00014072,111390.0,111380.0,0.68491144]
[1756822893260,0.00014072,111390.0,111380.0,0.84831144]
[1756822893792,0.00014072,111390.0,111380.0,0.70585026]
[1756822894045,0.00014072,111390.0,111380.0,0.86921026]
[1756822894303,0.00014072,111390.0,111380.0,0.87321026]
[1756822894579,0.00014072,111390.0,111380.0,0.87421026]
[1756822894828,0.00014072,111390.0,111380.0,1.27421026]
[1756822895116,0.00014072,111390.0,111380.0,1.75686878]
[1756822895620,0.00014072,111390.0,111380.0,1.75986878]
[1756822895883,0.00014072,111390.0,111380.0,1.80094236]
[1756822895884,1e-08,111390.0,111380.0,1.80094236]
[1756822896167,1e-08,111390.0,111380.0,1.96861932]
[1756822897460,1e-08,111390.0,111380.0,1.3216008]
[1756822897713,1e-08,111390.0,111380.0,1.96857932]
[1756822898884,1e-08,111390.0,111380.0,1.80525932]
[1756822899071,1e-08,111390.0,111380.0,1.96857932]
[1756822899763,1e-08,111390.0,111380.0,2.01857932]
[1756822899997,0.08647631,111450.0,111440.0,0.17946877]
[1756822900268,0.08694619,111450.0,111440.0,0.71946476]
[1756822900517,0.08908619,111450.0,111440.0,0.71946476]
[1756822900759,0.01046988,111450.0,111440.0,0.72142476]
[1756822901197,0.01260988,111450.0,111440.0,0.71946476]
[1756822901423,0.01446988,111450.0,111440.0,0.72142476]
[1756822901574,0.01646988,111450.0,111440.0,0.72142476]
[1756822901786,0.02153988,111450.0,111440.0,0.55618476]
[1756822901989,0.01953988,111450.0,111440.0,0.55618476]
[1756822902197,0.01953988,111450.0,111440.0,0.71942476]
[1756822902401,0.01953988,111450.0,111440.0,0.72142476]
[1756822902607,0.01953988,111450.0,111440.0,0.74852434]
[1756822902818,0.01553988,111450.0,111440.0,0.74852434]
[1756822903218,0.01553988,111450.0,111440.0,0.74952434]
[1756822903671,0.01553988,111450.0,111440.0,0.74852434]
[1756822903958,0.01553988,111450.0,111440.0,1.14852434]
[1756822904171,0.01553988,111450.0,111440.0,1.14652434]
[1756822905290,0.01046988,111450.0,111440.0,1.14848434]
[1756822906643,0.01046988,111450.0,111440.0,1.14948434]
[1756822907800,0.01553988,111450.0,111440.0,1.14948434]
[1756822908027,0.01553988,111450.0,111440.0,0.95918476]
[1756822908253,0.01553988,111450.0,111440.0,1.12238476]
[1756822908693,0.69555169,111450.0,111440.0,0.63042877]
[1756822908919,0.69555169,111450.0,111440.0,0.44896]
[1756822909171,0.87500435,111450.0,111440.0,0.62842877]
[1756822909394,0.21657558,111450.0,111440.0,0.62842877]
[1756822909609,0.69555169,111450.0,111440.0,0.62842877]
[1756822909833,0.87500435,111450.0,111440.0,0.46526877]
[1756822910077,0.87500435,111450.0,111440.0,0.62742877]
[1756822910278,0.69755169,111450.0,111440.0,0.62742877]
[1756822910559,0.69755169,111450.0,111440.0,0.46426877]
[1756822910774,0.03912292,111450.0,111440.0,0.62742877]
[1756822910992,0.04112292,111450.0,111440.0,0.62842877]
[1756822911436,0.69955169,111450.0,111440.0,0.62842877]
[1756822911849,0.69955169,111450.0,111440.0,0.62742877]
[1756822912089,0.69955169,111450.0,111440.0,0.46426877]
[1756822912310,0.69955169,111450.0,111440.0,0.62738877]
[1756822912748,0.04112292,111450.0,111440.0,0.62738877]
[1756822913175,0.03712292,111450.0,111440.0,0.62738877]
[1756822914455,0.87561935,111450.0,111440.0,0.2858]
[1756822914708,0.69616669,111450.0,111440.0,0.62838877]
[1756822914933,0.03712292,111450.0,111440.0,0.62838877]
[1756822915381,0.69616669,111450.0,111440.0,0.62738877]
[1756822915823,0.69616669,111450.0,111440.0,0.46426877]
[1756822916042,0.69616669,111450.0,111440.0,0.44792]
[1756822916259,0.69616669,111450.0,111440.0,0.62738877]
[1756822916492,0.87561935,111450.0,111440.0,0.2848]
[1756822916713,0.87561935,111450.0,111440.0,0.23212]
[1756822916930,0.21857558,111450.0,111440.0,0.23212]
[1756822917136,0.87561935,111450.0,111440.0,0.23212]
[1756822917349,1.4502675,111450.0,111440.0,0.07004]
[1756822917564,1.41399416,111450.0,111440.0,0.23312]
[1756822917789,1.41399416,111450.0,111440.0,0.23212]
[1756822918238,1.41199416,111450.0,111440.0,0.23212]
[1756822919316,1.43897978,111450.0,111440.0,0.23212]
[1756822919549,1.53089577,111450.0,111440.0,0.23212]
[1756822919761,1.53389577,111450.0,111440.0,0.23212]
[1756822919973,1.44197978,111450.0,111440.0,0.23212]
[1756822920181,0.78293601,111450.0,111440.0,0.23212]
[1756822920389,1.44197978,111450.0,111440.0,0.23212]
[1756822920606,1.43897978,111450.0,111440.0,0.23212]
[1756822920829,0.77993601,111450.0,111440.0,0.23212]
[1756822921032,0.78293601,111450.0,111440.0,0.23212]
[1756822921252,0.77993601,111450.0,111440.0,0.23208]
[1756822921451,0.78622342,111450.0,111440.0,0.23208]
[1756822921712,0.66218156,111450.0,111440.0,0.255288]
[1756822921929,0.37912292,111450.0,111440.0,0.255288]
[1756822922169,0.55857558,111450.0,111440.0,0.092248]
[1756822922386,0.67143039,111450.0,111440.0,0.23208]
[1756822922598,0.67772319,111450.0,111440.0,0.23208]
[1756822923045,0.67572319,111450.0,111440.0,0.23208]
[1756822923258,0.65414015,111450.0,111440.0,0.23208]
[1756822923507,0.67572319,111450.0,111440.0,0.23208]
[1756822923734,0.64849157,111450.0,111440.0,0.45270518]
[1756822923947,0.64849157,111450.0,111440.0,0.27323641]
[1756822924148,0.64849157,111450.0,111440.0,0.23208]
[1756822924359,0.65479616,111450.0,111440.0,0.23208]
[1756822924826,0.38049751,111450.0,111440.0,0.41154877]
[1756822925042,0.03205292,111450.0,111440.0,0.41350877]
[1756822925257,0.21657558,111450.0,111440.0,0.23208]
[1756822925476,0.22288051,111450.0,111440.0,0.23208]
[1756822925894,0.22288051,111450.0,111440.0,0.41154877]
[1756822926123,0.21657558,111450.0,111440.0,0.41154877]
[1756822926344,0.21657558,111450.0,111440.0,0.07104]
[1756822926563,0.38839973,111450.0,111440.0,0.06904]
[1756822926788,0.36352227,111450.0,111440.0,0.06904]
[1756822927002,0.38760372,111450.0,111440.0,0.23404]
[1756822927215,0.38760372,111450.0,111440.0,0.07104]
[1756822927438,0.38760372,111450.0,111440.0,0.23404]
[1756822927664,0.47239041,111450.0,111440.0,0.23404]
[1756822927894,0.47239041,111450.0,111440.0,0.002]
[1756822928126,0.92806411,111450.0,111440.0,0.165]
[1756822928343,0.72760372,111450.0,111440.0,0.165]
[1756822928570,0.69511216,111450.0,111440.0,0.165]
[1756822929051,0.72760451,111450.0,111440.0,0.165]
[1756822929279,0.70352316,111450.0,111440.0,0.165]
[1756822929529,0.72760461,111450.0,111440.0,0.165]
[1756822929810,0.6741745,111450.0,111440.0,0.002]
[1756822930054,0.67683903,111450.0,111440.0,0.163]
[1756822930278,0.68514699,111450.0,111440.0,0.163]
[1756822930494,0.68414699,111450.0,111440.0,0.163]
[1756822930718,0.68314699,111450.0,111440.0,0.163]
[1756822930933,0.17948091,111440.0,111430.0,0.17948487]
[1756822931148,0.02158304,111430.0,111420.0,0.24850081]
[1756822931392,0.02158304,111430.0,111420.0,0.41357081]
[1756822931607,0.02158304,111440.0,111430.0,0.17948487]
[1756822931819,0.55150558,111450.0,111440.0,0.17946877]
[1756822932048,0.37936068,111450.0,111440.0,0.34449877]
[1756822932270,0.03305292,111450.0,111440.0,0.39689713]
[1756822932714,0.21456558,111450.0,111440.0,0.39689713]
[1756822932927,0.03305292,111450.0,111440.0,0.39689713]
[1756822933134,0.01146988,111450.0,111440.0,0.39907713]
[1756822933366,0.01046988,111450.0,111440.0,0.49099312]
[1756822934465,0.01046988,111450.0,111440.0,0.89799312]
[1756822934891,0.01046988,111450.0,111440.0,0.89299312]
[1756822935101,0.01046988,111450.0,111440.0,0.89699312]
[1756822935331,0.01046988,111450.0,111440.0,1.25961487]
[1756822936439,0.01046988,111450.0,111440.0,1.96256865]
[1756822936701,0.49777316,111490.0,111470.0,0.1794061]
[1756822936906,0.18146437,111480.0,111470.0,0.19504771]
[1756822937116,0.18146437,111480.0,111470.0,0.26404771]
[1756822937342,0.20415073,111480.0,111470.0,0.26406208]
[1756822937548,0.20415073,111480.0,111470.0,0.42698208]
[1756822938322,0.20415073,111480.0,111470.0,0.07501661]
[1756822938533,0.20723073,111480.0,111470.0,0.41731708]
[1756822938820,0.20723073,111480.0,111470.0,0.071]
[1756822939250,0.20723073,111480.0,111470.0,0.41330047]
[1756822939677,0.20723073,111480.0,111470.0,0.071]
[1756822939888,0.20723073,111480.0,111470.0,0.23388]
[1756822940573,0.29914672,111480.0,111470.0,0.071]
[1756822940790,0.29914672,111480.0,111470.0,0.41330047]
[1756822941007,0.29914672,111480.0,111470.0,0.42040047]
[1756822941223,0.00206,111480.0,111470.0,0.42247047]
[1756822941442,0.54649385,111490.0,111480.0,0.17940437]
[1756822941667,0.18454437,111480.0,111470.0,0.0781]
[1756822941904,0.18454437,111480.0,111470.0,0.23384]
[1756822942378,0.27646036,111480.0,111470.0,0.071]
[1756822942596,0.61646036,111480.0,111470.0,0.23184]
[1756822942814,0.63998979,111480.0,111470.0,0.069]
[1756822943025,0.64098979,111480.0,111470.0,0.069]
[1756822943276,0.64098979,111480.0,111470.0,0.23184]
[1756822943277,0.66796538,111480.0,111470.0,0.23184]
[1756822943498,0.66696538,111480.0,111470.0,0.069]
[1756822943719,0.6879042,111480.0,111470.0,0.069]
[1756822943929,0.6889042,111480.0,111470.0,0.23184]
[1756822944136,0.69519816,111480.0,111470.0,0.23184]
[1756822944355,0.6889042,111480.0,111470.0,0.23184]
[1756822944588,0.51943656,111460.0,111450.0,0.069]
[1756822944802,0.61649255,111460.0,111450.0,0.2318]
[1756822945227,0.61649255,111460.0,111450.0,0.41125266]
[1756822945447,0.61341255,111460.0,111450.0,0.2318]
[1756822945666,0.61341255,111460.0,111450.0,0.41125266]
[1756822945918,0.61341255,111460.0,111450.0,0.41325266]
[1756822946141,0.45889684,111460.0,111450.0,0.41532266]
[1756822946349,0.6403934,111460.0,111450.0,0.2338]
[1756822947018,0.6434734,111460.0,111450.0,0.2338]
[1756822947234,0.6383334,111460.0,111450.0,0.41532266]
[1756822947462,0.45889684,111460.0,111450.0,0.41832266]
[1756822947682,0.6403934,111460.0,111450.0,0.41532266]
[1756822947894,0.6383334,111460.0,111450.0,0.41532266]
[1756822948109,0.02698085,111460.0,111450.0,0.41832266]
[1756822948341,0.17940437,111480.0,111470.0,0.17942047]
[1756822948560,0.1795154,111490.0,111480.0,0.17940437]
[1756822948816,0.12107562,111490.0,111480.0,0.24840437]
[1756822949030,0.20648791,111490.0,111480.0,0.25047437]
[1756822949732,0.02709963,111490.0,111480.0,0.25047437]
[1756822949952,0.00012654,111490.0,111480.0,0.25247437]
[1756822950178,0.00012654,111490.0,111480.0,0.27300509]
[1756822950413,0.00012654,111490.0,111480.0,0.58060108]
[1756822950641,0.00012654,111490.0,111480.0,0.91960108]